bitfinex/quotes_ETHUSD_20251110
["timestamp","ask_amount","ask_price","bid_price","bid_amount"]
[1762747434615,0.002,3627.1,3627.0,1.861012]
[1762747434616,0.25872578,3627.1,3627.0,1.861012]
[1762747435189,0.25872578,3627.1,3627.0,1.397312]
[1762747435619,0.25872578,3627.1,3627.0,0.1376]
[1762747435987,0.25872578,3627.1,3627.0,3.82999953]
[1762747436220,0.25872578,3627.1,3627.0,4.50448053]
[1762747437223,0.25872578,3627.1,3627.0,4.90998453]
[1762747437389,0.25872578,3627.1,3627.0,4.93755552]
[1762747437585,0.002,3627.1,3627.0,9.79493683]
[1762747437811,0.002,3627.1,3627.0,9.93253683]
[1762747438621,0.002,3627.1,3627.0,10.32386374]
[1762747439420,0.002,3627.1,3627.0,9.93253683]
[1762747440433,0.002,3627.2,3627.1,7.01052751]
[1762747440730,0.002,3627.2,3627.1,10.74815272]
[1762747441943,0.002,3627.2,3627.1,7.34672921]
[1762747442109,0.34257332,3627.2,3627.1,5.107712]
[1762747443444,0.80417332,3627.2,3627.1,3.848]
[1762747443624,0.80417332,3627.2,3627.0,0.1376]
[1762747443820,0.80607332,3627.1,3627.0,0.1376]
[1762747444364,3.56309683,3627.1,3626.8,1.259712]
[1762747444540,0.002,3627.2,3626.6,0.001]
[1762747444541,2.75732759,3626.7,3626.6,0.001]
[1762747444708,4.91516485,3626.7,3626.6,0.001]
[1762747444912,5.37676485,3626.7,3626.6,0.001]
[1762747449752,0.34437332,3626.7,3626.6,0.001]
[1762747449952,3.10170091,3626.7,3626.6,0.39232691]
[1762747452943,3.10111689,3626.7,3626.6,0.39232691]
[1762747453354,0.2562893,3626.7,3626.6,0.86852691]
[1762747453552,3.01361689,3626.7,3626.6,0.001]
[1762747453751,0.2562893,3626.7,3626.6,0.4772]
[1762747453954,0.2562893,3626.7,3626.6,0.9363]
[1762747454468,0.2562893,3626.7,3626.6,0.6148]
[1762747455175,0.2562893,3626.7,3626.6,1.0739]
[1762747455332,0.2562893,3626.7,3626.6,1.4570442]
[1762747455749,0.2562893,3626.7,3626.6,0.6148]
[1762747457540,0.7102893,3626.7,3626.6,0.1386]
[1762747457741,0.7102893,3626.7,3626.6,0.001]
[1762747458059,0.2562893,3626.7,3626.6,0.001]
[1762747458378,3.46501689,3626.7,3626.6,0.001]
[1762747459082,0.7076893,3626.7,3626.6,0.001]
[1762747459451,3.46501689,3626.7,3626.6,0.001]
[1762747461080,0.2562893,3626.7,3626.6,0.4772]
[1762747461653,3.01361689,3626.7,3626.6,0.001]
[1762747462153,3.46141689,3626.7,3626.6,0.001]
[1762747462490,3.56351689,3626.7,3626.6,0.001]
[1762747462790,0.7040893,3626.7,3626.6,0.001]
[1762747464488,3.46141689,3626.7,3626.6,0.001]
[1762747465962,3.09621689,3626.7,3626.6,0.001]
[1762747466162,0.3388893,3626.7,3626.6,0.001]
[1762747466807,3.09621689,3626.7,3626.6,0.001]
[1762747467790,3.56271689,3626.7,3626.6,0.001]
[1762747472205,4.12058405,3626.7,3626.6,0.001]
[1762747480542,5.38029605,3626.7,3626.6,0.001]
[1762747485918,8.51144263,3626.7,3626.6,0.001]
[1762747486525,2.7575557,3626.4,3626.3,1e-08]
[1762747486842,12.29481732,3626.4,3626.3,1e-08]
[1762747488557,12.29552594,3626.4,3626.3,1e-08]
[1762747488926,6.03323278,3626.4,3626.3,1e-08]
[1762747489127,12.29552594,3626.4,3626.3,1e-08]
[1762747497268,9.16437936,3626.4,3626.3,1e-08]
[1762747499148,12.29552594,3626.4,3626.3,1e-08]
[1762747499350,11.64352594,3626.4,3626.3,1e-08]
[1762747499536,12.29452594,3626.4,3626.3,1e-08]
[1762747501275,0.81486508,3626.4,3626.3,0.45470001]
[1762747501518,0.002,3627.1,3626.5,2.75741401]
[1762747501652,0.002,3627.5,3627.1,3.77514658]
[1762747501852,0.002,3627.5,3627.4,0.4547]
[1762747502357,0.002,3627.5,3626.8,0.4628]
[1762747502358,0.3248,3627.5,3626.8,0.4628]
[1762747502666,2.75684642,3627.4,3626.8,0.4628]
[1762747502864,0.002,3627.5,3627.4,0.4547]
[1762747503066,3.31203394,3627.5,3627.4,0.4547]
[1762747503601,2.75872844,3627.5,3627.4,0.4547]
[1762747504986,2.75872844,3627.5,3627.4,0.9175]
[1762747506491,0.002,3627.5,3627.4,0.9175]
[1762747506991,0.002,3627.5,3627.4,3.6742955]
[1762747507200,0.002,3627.5,3627.4,4.36667404]
[1762747507497,0.002,3627.9,3627.8,2.75649153]
[1762747507697,0.002,3627.9,3627.8,3.23875644]
[1762747507986,0.002,3627.9,3627.8,3.70155644]
[1762747508187,0.002,3627.9,3627.8,4.38997023]
[1762747508354,0.002,3627.9,3627.8,4.79547423]
[1762747509089,0.002,3627.9,3627.8,4.76790932]
[1762747509981,0.002,3627.9,3627.8,4.79547423]
[1762747510811,0.002,3628.3,3628.2,2.75618764]
[1762747510958,0.002,3628.3,3628.2,8.87025788]
[1762747511163,0.002,3628.3,3628.2,5.33890364]
[1762747511586,0.002,3628.3,3628.2,5.47650364]
[1762747513352,0.002,3628.3,3628.2,2.720316]
[1762747513556,0.002,3628.3,3628.2,5.84955585]
[1762747515880,0.002,3628.3,3628.2,5.87711772]
[1762747516691,0.002,3628.3,3628.2,5.84955585]
[1762747519805,0.002,3628.3,3628.2,0.4547]
[1762747520175,0.002,3628.3,3628.2,0.9175]
[1762747520502,0.002,3628.3,3628.2,0.4547]
[1762747520706,2.75811167,3628.3,3628.2,0.4547]
[1762747520916,2.75624339,3628.2,3627.6,1.449012]
[1762747521282,2.75813871,3628.3,3627.7,0.4628]
[1762747521505,2.75619523,3628.2,3627.7,0.4628]
[1762747522510,0.002,3628.3,3627.7,0.4628]
[1762747522697,2.75620239,3628.2,3627.7,1.722512]
[1762747523008,2.75620384,3628.2,3627.7,1.722512]
[1762747523175,2.75620384,3628.2,3627.8,0.4628]
[1762747523780,2.75618764,3628.2,3627.8,0.4628]
[1762747524307,2.75811354,3628.3,3627.8,0.4628]
[1762747524514,3.01160292,3628.2,3627.8,0.4628]
[1762747524674,2.75618927,3628.2,3627.8,0.4628]
[1762747524874,2.75627387,3628.1,3627.6,0.1893]
[1762747525084,2.75621465,3628.2,3627.6,0.1893]
[1762747525301,0.25551116,3628.1,3627.8,0.001]
[1762747525622,2.75816714,3628.3,3627.8,0.001]
[1762747525910,0.25551026,3628.2,3627.9,0.4712]
[1762747526115,0.002,3628.3,3628.2,0.6675]
[1762747526410,0.25769824,3628.3,3628.2,0.6675]
[1762747526569,0.25769824,3628.3,3628.2,1.1387]
[1762747526983,0.25769824,3628.3,3628.2,8.14839164]
[1762747527212,0.002,3628.3,3628.2,6.35280583]
[1762747527416,0.25798334,3628.3,3628.2,6.35280583]
[1762747527722,0.25798334,3628.3,3628.2,9.10899347]
[1762747528023,0.25798334,3628.3,3628.2,6.35280583]
[1762747528813,0.25798334,3628.3,3628.2,9.10899347]
[1762747529478,0.25798334,3628.3,3628.2,10.77420947]
[1762747529892,0.25798334,3628.3,3628.2,10.91180947]
[1762747531174,0.25903862,3628.3,3628.2,10.91180947]
[1762747532518,0.002,3628.5,3628.2,10.91180947]
[1762747532519,0.002,3628.5,3628.4,3.16153971]
[1762747532726,0.002,3629.1,3629.0,2.75558004]
[1762747532881,0.01,3629.9,3629.8,3.33736069]
[1762747533084,0.01,3629.9,3629.8,3.63307672]
[1762747533328,0.01,3629.9,3629.8,1.349304]
[1762747533628,0.2949,3629.9,3629.3,1.665216]
[1762747533918,0.01,3629.9,3629.5,0.405504]
[1762747534272,0.01,3629.9,3629.8,0.4726]
[1762747534475,0.01,3629.9,3629.5,0.405504]
[1762747534908,2.76490946,3629.9,3629.5,0.405504]
[1762747535135,0.01,3629.9,3629.3,0.405504]
[1762747535304,0.01,3629.9,3629.5,0.405504]
[1762747535484,0.01,3629.9,3629.5,1.665216]
[1762747536613,0.01,3629.9,3629.4,0.405504]
[1762747536909,0.01,3629.9,3629.4,0.876704]
[1762747537112,0.01,3629.9,3629.8,0.4726]
[1762747539633,0.01,3629.9,3629.8,0.9438]
[1762747540431,0.01,3629.9,3629.8,1.4396632]
[1762747540635,0.01,3629.9,3629.8,0.9438]
[1762747540798,0.01,3629.9,3629.8,3.69877272]
[1762747542214,0.01,3629.9,3629.8,0.9438]
[1762747542419,0.01,3629.9,3629.8,3.69877272]
[1762747542614,0.01,3629.9,3629.8,4.60773339]
[1762747543339,0.01,3629.9,3629.8,5.01323739]
[1762747543845,0.012,3629.9,3629.8,13.90445801]
[1762747544002,0.012,3629.9,3629.8,10.02890829]
[1762747544208,0.012,3629.9,3629.8,13.87690829]
[1762747545542,0.012,3629.9,3629.8,10.12094939]
[1762747547157,0.012,3629.9,3629.8,9.71544539]
[1762747547369,0.26834296,3629.9,3629.8,6.48927267]
[1762747547539,0.26834296,3629.9,3629.8,9.64974939]
[1762747548244,0.26834296,3629.9,3629.8,10.13044939]
[1762747548960,0.26834296,3629.9,3629.8,6.28244939]
[1762747549260,0.26834296,3629.9,3629.8,3.04677667]
[1762747549758,0.26834296,3629.9,3629.8,5.80174939]
[1762747550178,0.26834296,3629.9,3629.8,3.04677667]
[1762747551026,0.26834296,3629.9,3629.8,1.397312]
[1762747551027,1.22354296,3629.9,3629.8,1.397312]
[1762747551425,1.22354296,3629.9,3629.8,0.1376]
[1762747551957,1.22354296,3629.9,3629.1,0.001]
[1762747552133,2.8926511,3629.7,3629.1,0.1386]
[1762747552337,3.0114698,3629.6,3629.1,0.1386]
[1762747552552,0.25634296,3629.5,3629.1,0.1386]
[1762747552861,0.486,3629.2,3629.1,0.60206413]
[1762747553064,0.74234296,3629.2,3629.1,0.1386]
[1762747553267,1.01994296,3629.2,3629.1,0.1386]
[1762747553465,0.25634296,3629.2,3629.1,0.6342]
[1762747553639,0.25634296,3629.2,3629.1,1.1149]
[1762747554052,0.25634296,3629.2,3629.1,4.0523217]
[1762747554256,0.25634296,3629.2,3629.1,5.7927337]
[1762747555187,0.25634296,3629.2,3629.1,6.22579274]
[1762747555356,0.25634296,3629.2,3629.1,6.1982377]
[1762747555691,0.52874296,3629.2,3629.1,4.392104]
[1762747555899,0.52874296,3629.2,3629.1,3.849]
[1762747556188,3.77327115,3629.2,3629.1,0.001]
[1762747556840,1.01784296,3629.2,3629.1,0.001]
[1762747557040,3.28417115,3629.2,3629.1,0.001]
[1762747557270,3.77327115,3629.2,3629.1,0.001]
[1762747558595,3.28417115,3629.2,3629.1,0.001]
[1762747559095,0.25634296,3629.2,3629.1,0.001]
[1762747559391,0.25634296,3629.2,3629.1,0.472]
[1762747560899,0.25634296,3629.2,3629.1,0.9565]
[1762747561084,0.52874296,3629.2,3629.1,0.75700646]
[1762747561397,0.52874296,3629.2,3629.1,0.001]
[1762747561398,1.01784296,3629.2,3629.1,0.001]
[1762747561766,3.77327115,3629.2,3629.1,0.001]
[1762747564901,1.01784296,3629.2,3629.1,0.001]
[1762747565099,0.25634296,3629.2,3629.1,0.001]
[1762747565304,0.53094296,3629.2,3629.1,0.001]
[1762747567208,0.53094296,3629.2,3629.1,0.472]
[1762747567209,0.25634296,3629.2,3629.1,0.472]
[1762747568511,3.01154419,3629.5,3629.1,0.472]
[1762747568678,0.25634296,3629.4,3629.1,0.472]
[1762747568878,0.25634296,3629.3,3629.1,0.472]
[1762747569072,0.25634296,3629.2,3629.1,0.472]
[1762747569606,0.6289,3629.6,3629.1,4.81421]
[1762747569607,0.25634296,3629.5,3629.1,4.81421]
[1762747569911,0.25634296,3629.4,3629.1,4.81421]
[1762747570088,0.25634296,3629.3,3629.1,4.81421]
[1762747570295,0.25634296,3629.2,3629.1,8.76393011]
[1762747570617,2.76689809,3629.9,3629.3,0.1376]
[1762747570773,0.25686368,3629.8,3629.3,2.75529566]
[1762747570973,0.25686368,3629.7,3629.3,4.67072149]
[1762747571315,0.2735,3629.4,3629.3,1.43092583]
[1762747571473,0.53036368,3629.4,3629.1,3.849]
[1762747571674,0.2687,3629.2,3629.1,3.849]
[1762747572510,2.89275487,3629.6,3629.1,4.32]
[1762747572721,0.25686815,3629.5,3629.1,4.99422518]
[1762747572954,0.25686815,3629.5,3629.1,1.63072518]
[1762747573713,0.25686815,3629.5,3629.2,3.26748067]
[1762747574020,0.25686815,3629.5,3629.4,0.471]
[1762747574424,0.25686815,3629.5,3629.4,0.98305276]
[1762747574608,0.25686815,3629.5,3629.4,1.12065276]
[1762747574807,0.25686815,3629.8,3629.4,1.12065276]
[1762747575011,0.25686815,3629.7,3629.5,3.23969278]
[1762747575246,0.012,3629.9,3629.6,0.66311866]
[1762747575423,0.25725027,3629.8,3629.6,0.471]
[1762747575614,0.75225027,3629.7,3629.4,0.1376]
[1762747575815,0.25725027,3629.6,3629.4,0.1376]
[1762747576053,0.25726129,3629.5,3629.4,0.1376]
[1762747576413,0.25726129,3629.5,3629.4,0.6086]
[1762747576640,0.25726129,3629.5,3629.4,0.99355167]
[1762747577349,0.75006129,3629.5,3629.4,0.1376]
[1762747577546,0.75206129,3629.5,3629.4,0.1376]
[1762747577756,1.02416129,3629.5,3629.1,0.001]
[1762747578046,0.0027,3629.2,3629.1,0.1386]
[1762747578238,0.25996129,3629.2,3629.1,0.1386]
[1762747579157,0.75126129,3629.2,3629.1,0.1386]
[1762747579364,3.50668948,3629.2,3629.1,0.1386]
[1762747579523,0.75126129,3629.2,3629.1,0.001]
[1762747579712,0.25996129,3629.2,3629.1,0.001]
[1762747582329,3.50668948,3629.2,3629.1,0.001]
[1762747582528,4.04703863,3629.2,3629.1,0.001]
[1762747588543,4.69703863,3629.2,3629.1,0.001]
[1762747590081,0.80031044,3629.2,3629.1,0.001]
[1762747590278,0.75796129,3629.2,3629.1,0.001]
[1762747590584,3.51338948,3629.2,3629.1,0.001]
[1762747591286,4.05248568,3629.2,3629.1,0.001]
[1762747592749,3.51338948,3629.2,3629.1,0.001]
[1762747593697,4.05229479,3629.2,3629.1,0.001]
[1762747594054,4.05429479,3629.2,3629.1,0.001]
[1762747594771,3.51538948,3629.2,3629.1,0.001]
[1762747595665,4.05425119,3629.2,3629.1,0.001]
[1762747596470,4.05418141,3629.2,3629.1,0.001]
[1762747598789,8.01749121,3629.2,3629.1,0.001]
[1762747598967,7.18168285,3629.2,3629.1,0.001]
[1762747601002,4.05418141,3629.2,3629.1,0.001]
[1762747601806,7.18168285,3629.2,3629.1,0.001]
[1762747604323,4.05418141,3629.2,3629.1,0.001]
[1762747604623,7.18168285,3629.2,3629.1,0.001]
[1762747606327,3.55618141,3629.2,3629.1,0.001]
[1762747606528,7.18168285,3629.2,3629.1,0.001]
[1762747613735,8.44139485,3629.2,3629.1,0.001]
[1762747617232,8.55174074,3629.2,3629.1,0.001]
[1762747617713,11.67924218,3629.2,3629.1,0.001]
[1762747617958,8.05104074,3629.2,3629.1,0.001]
[1762747618159,8.23499485,3629.2,3629.1,0.001]
[1762747618453,8.70359485,3629.2,3629.1,0.001]
[1762747620358,8.23499485,3629.2,3629.1,0.001]
[1762747620765,8.70359485,3629.2,3629.1,0.001]
[1762747621768,8.43249485,3629.2,3629.1,0.001]
[1762747622272,8.70559485,3629.2,3629.1,0.001]
[1762747623462,7.94069485,3629.2,3629.1,0.001]
[1762747623661,7.17058285,3629.2,3629.1,0.001]
[1762747626162,3.55348141,3629.2,3629.1,0.5001]
[1762747626457,3.55348141,3629.2,3629.1,0.9591]
[1762747628550,3.55348141,3629.2,3629.1,0.5001]
[1762747629582,3.55348141,3629.2,3629.1,0.9591]
[1762747629882,3.55348141,3629.2,3629.1,0.5001]
[1762747631390,6.97528285,3629.2,3629.1,0.001]
[1762747631698,9.35359485,3629.2,3629.1,0.001]
[1762747635308,8.88499485,3629.2,3629.1,0.001]
[1762747635878,8.88553283,3629.2,3629.1,0.001]
[1762747637114,8.59123283,3629.2,3629.1,0.001]
[1762747637683,7.94123283,3629.2,3629.1,0.001]
[1762747637896,8.88733283,3629.2,3629.1,0.001]
[1762747638092,9.35413283,3629.2,3629.1,0.001]
[1762747638597,8.88733283,3629.2,3629.1,0.001]
[1762747640022,7.62762083,3629.2,3629.1,0.001]
[1762747641778,8.09442083,3629.2,3629.1,0.001]
[1762747642020,9.35413283,3629.2,3629.1,0.001]
[1762747642208,9.46447598,3629.2,3629.1,0.001]
[1762747643627,12.59197742,3629.2,3629.1,0.001]
[1762747644227,12.59197742,3629.2,3628.7,0.001]
[1762747644228,2.75573192,3628.8,3628.7,0.001]
[1762747644427,10.461026,3628.8,3628.7,0.001]
[1762747644595,12.191038,3628.8,3628.7,0.001]
[1762747645006,12.30139941,3628.8,3628.7,0.001]
[1762747647124,8.97988759,3628.8,3628.7,0.001]
[1762747649736,8.97955567,3628.8,3628.7,0.001]
[1762747652635,4.92676461,3628.8,3628.7,0.001]
[1762747652837,8.50925567,3628.8,3628.7,0.4694]
[1762747653008,8.39419426,3628.8,3628.7,0.4694]
[1762747653333,8.39419426,3628.8,3628.7,0.9285]
[1762747653334,7.13448226,3628.8,3628.7,0.9285]
[1762747653534,8.39419426,3628.8,3628.7,0.9285]
[1762747653736,4.2009912,3628.8,3628.7,0.4694]
[1762747653902,4.2009912,3628.8,3628.7,0.9285]
[1762747654103,4.2009912,3628.8,3628.7,0.4694]
[1762747655103,7.13448226,3628.8,3628.7,0.001]
[1762747655749,7.43828226,3628.8,3628.7,0.001]
[1762747656439,8.69799426,3628.8,3628.7,0.001]
[1762747656943,9.15809426,3628.8,3628.7,0.001]
[1762747658207,5.9208032,3628.8,3628.7,0.4694]
[1762747658543,6.3816032,3628.8,3628.7,0.001]
[1762747658741,9.31509426,3628.8,3628.7,0.001]
[1762747659122,8.85429426,3628.8,3628.7,0.001]
[1762747659942,5.9208032,3628.8,3628.7,0.4694]
[1762747660144,5.9208032,3628.8,3628.7,0.9285]
[1762747660315,4.6610912,3628.8,3628.7,0.9285]
[1762747660510,4.6610912,3628.8,3628.7,0.4694]
[1762747661246,4.2009912,3628.8,3628.7,0.9285]
[1762747661755,0.79625928,3628.8,3628.7,0.9285]
[1762747661961,0.25739757,3628.8,3628.7,0.9285]
[1762747662465,3.01312949,3628.8,3628.7,0.9285]
[1762747663854,0.25739757,3628.8,3628.7,0.9285]
[1762747664016,3.01312949,3628.8,3628.7,0.9285]
[1762747664751,0.25739757,3628.8,3628.7,0.9285]
[1762747665947,0.25739757,3628.8,3628.7,1.29705339]
[1762747666146,0.25739757,3628.8,3628.7,3.68430786]
[1762747666518,0.25739757,3628.8,3628.7,0.9285]
[1762747666727,0.25739757,3628.8,3628.7,3.68430786]
[1762747667268,0.002,3629.1,3628.7,0.9285]
[1762747667440,0.002,3629.1,3629.0,0.4684]
[1762747667645,0.002,3629.1,3629.0,0.8368174]
[1762747667964,0.002,3629.1,3629.0,4.05149744]
[1762747668165,0.002,3629.1,3629.0,1.2959174]
[1762747668335,0.002,3629.1,3629.0,0.9275]
[1762747672074,2.75750411,3629.1,3629.0,0.9275]
[1762747672438,0.002,3629.1,3629.0,0.9275]
[1762747672967,2.75750411,3629.1,3629.0,0.9275]
[1762747673168,2.75750411,3629.1,3629.0,0.4916]
[1762747673368,2.75750411,3629.1,3629.0,0.9542]
[1762747673576,0.002,3629.1,3629.0,0.9542]
[1762747673740,2.75750411,3629.1,3629.0,0.9542]
[1762747677262,0.002,3629.1,3629.0,0.9542]
[1762747677579,2.75750411,3629.1,3629.0,0.9542]
[1762747679372,3.01430478,3629.1,3629.0,0.9542]
[1762747680180,3.01430478,3629.1,3629.0,0.4916]
[1762747682184,3.01430478,3629.1,3629.0,0.9737]
[1762747682690,0.25880067,3629.1,3629.0,0.9737]
[1762747684077,0.25880067,3629.1,3629.0,1.45882573]
[1762747686866,0.25880067,3629.1,3629.0,4.21440577]
[1762747687068,0.002,3629.1,3629.0,4.21440577]
[1762747687286,0.25937202,3629.1,3629.0,4.21440577]
[1762747687651,0.25937202,3629.1,3629.0,1.45882573]
[1762747688191,0.25937202,3629.1,3629.0,4.24196157]
[1762747688392,0.25937202,3629.1,3629.0,4.21440577]
[1762747691181,0.25937202,3629.1,3629.0,1.45882573]
[1762747691563,0.25937202,3629.1,3629.0,4.21440577]
[1762747692591,0.25937202,3629.1,3629.0,8.06240577]
[1762747692959,0.002,3629.1,3629.0,8.06240577]
[1762747693286,0.25976356,3629.1,3629.0,8.06240577]
[1762747694486,0.25976356,3629.1,3629.0,5.30682573]
[1762747695092,0.25976356,3629.1,3629.0,8.06240577]
[1762747696086,0.25976356,3629.1,3629.0,4.82472573]
[1762747696292,0.25976356,3629.1,3629.0,0.97672573]
[1762747696691,0.25976356,3629.1,3629.0,1.45882573]
[1762747698512,3.78423067,3629.1,3628.8,0.001]
[1762747698671,0.005,3628.9,3628.8,0.001]
[1762747699207,3.0133988,3628.9,3628.8,0.001]
[1762747700307,4.5448108,3628.9,3628.8,0.001]
[1762747700474,5.0420108,3628.9,3628.8,0.001]
[1762747701977,5.2291108,3628.9,3628.8,0.001]
[1762747702178,8.16260186,3628.9,3628.8,0.001]
[1762747702410,8.71033507,3628.9,3628.8,0.001]
[1762747702714,8.82067548,3628.9,3628.8,0.001]
[1762747706133,4.2731108,3628.9,3628.8,0.001]
[1762747706433,1.51745482,3628.9,3628.8,0.4588]
[1762747706896,1.51745482,3628.9,3628.8,0.915]
[1762747707699,0.25774282,3628.9,3628.8,1.28229541]
[1762747708306,0.25774282,3628.9,3628.8,0.4588]
[1762747709004,0.25756515,3628.9,3628.8,0.4588]
[1762747710100,0.25756515,3628.9,3628.8,0.915]
[1762747713109,0.25756515,3628.9,3628.8,3.80833192]
[1762747713317,0.25756515,3628.9,3628.8,1.0526]
[1762747713606,0.25756515,3628.9,3628.8,4.22644034]
[1762747713904,0.25756515,3628.9,3628.8,1.0526]
[1762747714105,0.25756515,3628.9,3628.8,0.5964]
[1762747714335,0.25756515,3628.9,3628.8,1.0526]
[1762747714733,0.25756515,3628.9,3628.8,3.80833192]
[1762747714955,0.25756515,3628.9,3628.8,4.46496102]
[1762747715350,0.25756515,3628.9,3628.8,1.7092291]
[1762747716136,0.25956515,3628.9,3628.8,1.7092291]
[1762747716331,0.25956515,3628.9,3628.8,1.2530291]
[1762747716656,0.25956515,3628.9,3628.8,0.5964]
[1762747718257,0.25956515,3628.9,3628.8,1.0526]
[1762747718459,0.25956515,3628.9,3628.8,0.5964]
[1762747718750,0.25956515,3628.9,3628.8,1.0526]
[1762747720238,0.25956515,3628.9,3628.8,3.80833192]
[1762747720542,0.25956515,3628.9,3628.8,4.78035119]
[1762747722011,0.25956515,3628.9,3628.8,2.02461927]
[1762747722208,0.25956515,3628.9,3628.8,1.0526]
[1762747725155,0.25956515,3628.9,3628.8,0.5964]
[1762747725647,0.75116515,3628.9,3628.8,0.1386]
[1762747725855,0.25956515,3628.9,3628.8,0.1386]
[1762747726061,0.25956515,3628.9,3628.8,0.5964]
[1762747727368,0.25956515,3628.9,3628.8,0.97744705]
[1762747727533,0.25956515,3628.9,3628.8,1.43364705]
[1762747727732,0.25956515,3628.9,3628.8,5.28164705]
[1762747728374,0.25956515,3628.9,3628.8,8.03737897]
[1762747728677,0.25956515,3628.9,3628.8,5.29934705]
[1762747729172,0.25956515,3628.9,3628.8,4.82544705]
[1762747731351,0.25990931,3628.9,3628.8,4.82544705]
[1762747732936,0.25990931,3628.9,3628.8,7.58117897]
[1762747733141,0.25990931,3628.9,3628.8,8.05507897]
[1762747733558,0.25990931,3628.9,3628.8,7.58117897]
[1762747733752,0.25990931,3628.9,3628.8,8.05507897]
[1762747733954,0.25990931,3628.9,3628.8,5.29934705]
[1762747734469,0.26005552,3628.9,3628.8,5.29934705]
[1762747735075,0.26005552,3628.9,3628.8,8.05507897]
[1762747735448,0.26005552,3628.9,3628.8,5.29934705]
[1762747736288,0.26005552,3628.9,3628.8,4.82544705]
[1762747737148,0.26005552,3628.9,3628.8,5.30544705]
[1762747737448,0.26005552,3628.9,3628.8,8.06117897]
[1762747738261,0.26005552,3628.9,3628.8,5.30544705]
[1762747738445,0.26005552,3628.9,3628.8,4.9244]
[1762747739196,0.26005552,3628.9,3628.8,7.68013192]
[1762747739343,0.26005552,3628.9,3628.8,4.9244]
[1762747739543,0.26005552,3628.9,3628.8,4.4444]
[1762747740292,0.26005552,3628.9,3628.8,4.9244]
[1762747740507,0.26037818,3628.9,3628.8,8.72394478]
[1762747740645,0.26037818,3628.9,3628.8,15.2448172]
[1762747741276,0.002,3628.9,3628.8,15.2448172]
[1762747741873,0.002,3628.9,3628.8,12.11833299]
[1762747742907,0.002,3628.9,3628.8,6.23611686]
[1762747743107,0.26007281,3628.9,3628.8,4.3068]
[1762747743307,0.58177281,3628.9,3628.8,3.849]
[1762747743876,0.26007281,3628.9,3628.8,3.849]
[1762747744206,0.26007281,3628.9,3628.8,4.302]
[1762747744609,0.26007281,3628.9,3628.8,3.849]
[1762747746398,1.03897281,3628.9,3628.8,0.001]
[1762747746596,0.58177281,3628.9,3628.8,0.001]
[1762747746940,0.58177281,3628.9,3628.8,7.22887344]
[1762747746941,0.26007281,3628.9,3628.8,7.22887344]
[1762747747234,0.26007281,3628.9,3628.8,4.07483192]
[1762747747515,0.26007281,3628.9,3628.8,4.10238923]
[1762747748074,0.26007281,3628.9,3628.8,7.22887344]
[1762747748327,0.26007281,3628.9,3628.8,7.20131613]
[1762747749507,0.26007281,3628.9,3628.8,7.60682013]
[1762747750771,0.26007281,3628.9,3628.8,10.87090434]
[1762747751104,0.26007281,3628.9,3628.8,7.74442013]
[1762747751616,0.002,3628.9,3628.8,7.74442013]
[1762747754182,0.002,3628.9,3628.8,10.87090434]
[1762747755023,0.002,3628.9,3628.8,12.13061634]
[1762747755387,0.002,3629.1,3629.0,3.16108404]
[1762747755712,0.002,3629.1,3629.0,12.81964178]
[1762747756016,0.002,3629.1,3629.0,10.17315757]
[1762747756384,0.002,3629.1,3629.0,10.03555757]
[1762747756581,0.002,3629.1,3629.0,10.17315757]
[1762747757209,0.002,3629.1,3629.0,13.29964178]
[1762747757410,0.002,3629.1,3629.0,10.17315757]
[1762747757611,0.002,3629.1,3629.0,13.29964178]
[1762747758431,0.002,3629.1,3629.0,10.17315757]
[1762747758826,0.002,3629.1,3629.0,13.29964178]
[1762747759026,0.002,3629.1,3629.0,10.17315757]
[1762747761100,0.002,3629.1,3629.0,13.40990645]
[1762747765141,0.002,3629.1,3629.0,10.28342224]
[1762747765640,0.002,3629.1,3629.0,13.40990645]
[1762747765943,0.002,3630.3,3629.6,6.99862853]
[1762747766125,0.002,3630.3,3629.6,9.87219695]
[1762747766320,0.002,3630.3,3629.6,10.46859695]
[1762747766629,0.002,3630.3,3629.6,10.57886162]
[1762747766826,0.002,3630.3,3629.6,11.91226888]
[1762747767725,0.002,3630.3,3629.8,3.16047672]
[1762747767970,0.002,3630.3,3629.8,11.59055714]
[1762747768297,0.002,3630.3,3629.8,11.72815714]
[1762747768440,0.002,3630.3,3629.8,13.42007004]
[1762747768844,0.002,3630.3,3629.9,4.42011282]
[1762747769035,0.002,3630.3,3629.9,5.36506178]
[1762747769944,0.002,3630.3,3630.2,4.41988516]
[1762747770253,0.002,3630.3,3630.2,7.83215963]
[1762747770563,0.002,3630.3,3630.2,9.91098117]
[1762747770857,0.002,3630.3,3630.2,6.98485339]
[1762747771058,0.4621,3630.3,3630.2,2.05307223]
[1762747771358,0.4621,3630.3,3630.2,3.40801018]
[1762747771530,0.7949,3630.3,3630.2,3.40801018]
[1762747772256,0.7949,3630.3,3630.2,3.29777316]
[1762747772424,0.7949,3630.3,3630.2,2.89226916]
[1762747772620,0.7949,3630.3,3630.2,3.29777316]
[1762747773043,0.002,3630.3,3630.2,6.22390094]
[1762747773244,0.002,3630.3,3630.2,7.70634349]
[1762747777775,0.3381,3630.3,3630.2,3.29777316]
[1762747778337,0.002,3630.3,3630.2,3.29777316]
[1762747778762,0.002,3630.3,3630.2,3.75637316]
[1762747779146,0.002,3630.3,3630.2,4.24271985]
[1762747779534,0.002,3630.3,3630.2,4.21517316]
[1762747779769,0.002,3630.3,3630.2,5.34178112]
[1762747779975,0.002,3630.3,3630.2,5.45202634]
[1762747781540,0.002,3630.3,3630.2,5.47957303]
[1762747782067,0.002,3630.3,3630.2,5.45202634]
[1762747782257,0.002,3630.3,3630.2,6.71173834]
[1762747786683,0.002,3630.3,3630.2,6.25293834]
[1762747786974,0.002,3630.3,3630.2,6.71173834]
[1762747789389,0.002,3630.7,3630.6,6.99186966]